[Event "GrandPrix_30.05"]
[Site "Chess.com"]
[Date "2020.05.30"]
[Round "5"]
[White "SpasKozhuharov"]
[Black "Novoselski"]
[Result "0-1"]
[WhiteElo "2160"]
[BlackElo "2348"]
[TimeControl "600+2"]
[EndTime "10:26:12 PDT"]
[Termination "Novoselski won on time"]

1. c4 {[%clk 0:09:57.5]} 1... e5 {[%clk 0:09:59.6]} 2. Nc3 {[%clk 0:09:55.2]}
2... Nf6 {[%clk 0:09:59.9]} 3. g3 {[%clk 0:09:54.1]} 3... c6 {[%clk 0:10:00.3]}
4. d4 {[%clk 0:09:53.5]} 4... e4 {[%clk 0:09:59.2]} 5. Bg5 {[%clk 0:09:38.1]}
5... Bb4 {[%clk 0:09:48.6]} 6. Qb3 {[%clk 0:09:35.9]} 6... Bxc3+ {[%clk
0:09:29.4]} 7. bxc3 {[%clk 0:09:30]} 7... O-O {[%clk 0:09:26.6]} 8. Bg2 {[%clk
0:09:27.9]} 8... Re8 {[%clk 0:09:26.3]} 9. Nh3 {[%clk 0:09:25.8]} 9... h6 {[%clk
0:09:20]} 10. Bxf6 {[%clk 0:09:24.2]} 10... Qxf6 {[%clk 0:09:19.7]} 11. O-O
{[%clk 0:09:15]} 11... d6 {[%clk 0:09:14.7]} 12. f3 {[%clk 0:08:35.9]} 12... e3
{[%clk 0:08:48.2]} 13. Nf4 {[%clk 0:08:23.6]} 13... Qe7 {[%clk 0:08:27.5]} 14.
Bh3 {[%clk 0:07:53.8]} 14... Nd7 {[%clk 0:07:56.3]} 15. Rab1 {[%clk 0:07:49.1]}
15... Rb8 {[%clk 0:07:48.2]} 16. Qa3 {[%clk 0:07:38.6]} 16... a6 {[%clk
0:07:45.3]} 17. Rb3 {[%clk 0:07:33]} 17... Nf6 {[%clk 0:07:41.1]} 18. Bxc8
{[%clk 0:07:15.9]} 18... Rexc8 {[%clk 0:07:43]} 19. Rfb1 {[%clk 0:07:14.1]}
19... Qc7 {[%clk 0:06:50]} 20. c5 {[%clk 0:06:55.4]} 20... dxc5 {[%clk
0:06:42.3]} 21. Qxc5 {[%clk 0:06:47.6]} 21... Nd7 {[%clk 0:06:09.4]} 22. Qa7
{[%clk 0:06:31.1]} 22... b5 {[%clk 0:05:58.4]} 23. Qxc7 {[%clk 0:06:27.8]} 23...
Rxc7 {[%clk 0:06:00.3]} 24. a4 {[%clk 0:06:19.8]} 24... Re8 {[%clk 0:05:58.1]}
25. c4 {[%clk 0:06:07.8]} 25... bxc4 {[%clk 0:05:44.7]} 26. Rc3 {[%clk
0:06:05.7]} 26... g5 {[%clk 0:05:20.4]} 27. Ng2 {[%clk 0:05:03.6]} 27... Nf6
{[%clk 0:05:10]} 28. Rxc4 {[%clk 0:04:37.2]} 28... Nd5 {[%clk 0:05:08.8]} 29. a5
{[%clk 0:04:23.1]} 29... Ree7 {[%clk 0:04:13.9]} 30. Ne1 {[%clk 0:04:15.3]}
30... Rb7 {[%clk 0:04:04.3]} 31. Rxb7 {[%clk 0:04:10.1]} 31... Rxb7 {[%clk
0:04:06.2]} 32. Rxc6 {[%clk 0:04:07.7]} 32... Rb1 {[%clk 0:04:05.2]} 33. Kf1
{[%clk 0:03:59.2]} 33... Kg7 {[%clk 0:04:02.7]} 34. Rxa6 {[%clk 0:03:50.6]}
34... Ra1 {[%clk 0:03:52.1]} 35. Rc6 {[%clk 0:03:30.3]} 35... Rxa5 {[%clk
0:03:21.4]} 36. Rc5 {[%clk 0:03:12.3]} 36... Rxc5 {[%clk 0:03:21.6]} 37. dxc5
{[%clk 0:03:10.2]} 37... Kf6 {[%clk 0:03:22.6]} 38. Nd3 {[%clk 0:02:48.8]} 38...
Ke6 {[%clk 0:03:21]} 39. h4 {[%clk 0:02:42.8]} 39... f6 {[%clk 0:03:19.6]} 40.
Kg2 {[%clk 0:02:09.7]} 40... Nc3 {[%clk 0:03:13.3]} 41. hxg5 {[%clk 0:02:00.8]}
41... hxg5 {[%clk 0:03:12.2]} 42. f4 {[%clk 0:01:51.9]} 42... g4 {[%clk
0:02:43]} 43. Kf1 {[%clk 0:01:42.4]} 43... Kd5 {[%clk 0:02:38.2]} 44. f5 {[%clk
0:01:20.1]} 44... Ne4 {[%clk 0:02:32.2]} 45. Kg2 {[%clk 0:01:10.9]} 45... Nxc5
{[%clk 0:02:28.9]} 46. Nf4+ {[%clk 0:00:58.9]} 46... Ke5 {[%clk 0:02:23.5]} 47.
Kf1 {[%clk 0:00:53]} 47... Ne4 {[%clk 0:02:11.1]} 48. Kg2 {[%clk 0:00:37.6]}
48... Nd6 {[%clk 0:02:09.3]} 0-1

[Event "GrandPrix_30.05"]
[Site "Chess.com"]
[Date "2020.05.30"]
[Round "5"]
[White "Magicmaster17"]
[Black "Tesla37"]
[Result "0-1"]
[WhiteElo "2371"]
[BlackElo "2737"]
[TimeControl "600+2"]
[EndTime "10:26:33 PDT"]
[Termination "Tesla37 won on time"]

1. Nf3 {[%clk 0:09:50.7]} 1... Nf6 {[%clk 0:09:59.2]} 2. c4 {[%clk 0:09:51.1]}
2... d6 {[%clk 0:09:57.9]} 3. Nc3 {[%clk 0:09:48]} 3... Nbd7 {[%clk 0:09:56]} 4.
d4 {[%clk 0:09:47.8]} 4... e5 {[%clk 0:09:55.9]} 5. e4 {[%clk 0:09:48.4]} 5...
g6 {[%clk 0:09:56.5]} 6. Be2 {[%clk 0:09:49.2]} 6... Bg7 {[%clk 0:09:56.7]} 7.
O-O {[%clk 0:09:49.9]} 7... O-O {[%clk 0:09:57.5]} 8. Qc2 {[%clk 0:09:48.7]}
8... c6 {[%clk 0:09:57.4]} 9. d5 {[%clk 0:09:49.6]} 9... c5 {[%clk 0:09:56.1]}
10. Bg5 {[%clk 0:09:50.3]} 10... h6 {[%clk 0:09:40.5]} 11. Bd2 {[%clk
0:09:50.2]} 11... Ne8 {[%clk 0:09:12.3]} 12. g3 {[%clk 0:09:50.6]} 12... f5
{[%clk 0:08:36]} 13. Nh4 {[%clk 0:09:23]} 13... Qf6 {[%clk 0:08:34.6]} 14. exf5
{[%clk 0:08:22.6]} 14... gxf5 {[%clk 0:08:33.5]} 15. f4 {[%clk 0:08:24.2]} 15...
e4 {[%clk 0:08:29.6]} 16. Nd1 {[%clk 0:08:16]} 16... Qf7 {[%clk 0:08:11.6]} 17.
Ne3 {[%clk 0:08:13]} 17... Bd4 {[%clk 0:08:10.2]} 18. Kh1 {[%clk 0:08:11]} 18...
Ng7 {[%clk 0:08:08.5]} 19. Rab1 {[%clk 0:06:46.7]} 19... Nf6 {[%clk 0:07:56.8]}
20. Nhg2 {[%clk 0:04:53.4]} 20... h5 {[%clk 0:07:05.4]} 21. b4 {[%clk
0:04:35.4]} 21... b6 {[%clk 0:06:41.2]} 22. Qc1 {[%clk 0:03:38.3]} 22... Nh7
{[%clk 0:05:59.8]} 23. Bc3 {[%clk 0:03:29.5]} 23... Re8 {[%clk 0:05:35.3]} 24.
Qd2 {[%clk 0:03:24.9]} 24... Qf6 {[%clk 0:05:09.1]} 25. Bb2 {[%clk 0:03:23.1]}
25... Nf8 {[%clk 0:04:35.6]} 26. Rfd1 {[%clk 0:03:23.2]} 26... Bxb2 {[%clk
0:04:31.9]} 27. Qxb2 {[%clk 0:03:24.7]} 27... Qf7 {[%clk 0:04:13.5]} 28. Nh4
{[%clk 0:03:14.8]} 28... Ng6 {[%clk 0:04:07.9]} 29. Rg1 {[%clk 0:03:02.8]} 29...
Kh7 {[%clk 0:03:50.1]} 30. a3 {[%clk 0:02:13.3]} 30... Qe7 {[%clk 0:03:34.7]}
31. Rg2 {[%clk 0:01:23]} 31... Bd7 {[%clk 0:03:17.7]} 32. Nxg6 {[%clk
0:00:43.8]} 32... Kxg6 {[%clk 0:03:16.7]} 33. h3 {[%clk 0:00:39.3]} 33... Kf7
{[%clk 0:03:07.7]} 34. Kg1 {[%clk 0:00:27.6]} 34... cxb4 {[%clk 0:02:30.4]} 35.
axb4 {[%clk 0:00:28.2]} 35... a5 {[%clk 0:02:31.4]} 36. g4 {[%clk 0:00:23.8]}
36... hxg4 {[%clk 0:02:03.3]} 37. hxg4 {[%clk 0:00:25.7]} 37... Rh8 {[%clk
0:02:03.3]} 38. gxf5 {[%clk 0:00:20.5]} 38... Rag8 {[%clk 0:02:02.1]} 39. bxa5
{[%clk 0:00:19.4]} 39... Nxf5 {[%clk 0:01:56.1]} 40. Nxf5 {[%clk 0:00:11.2]}
40... Bxf5 {[%clk 0:01:56.6]} 41. Bf1 {[%clk 0:00:08.2]} 41... Qh4 {[%clk
0:01:50.6]} 42. Qxb6 {[%clk 0:00:08.5]} 42... Qh2+ {[%clk 0:01:31.1]} 43. Kf2
{[%clk 0:00:09.5]} 43... Qxf4+ {[%clk 0:01:22]} 44. Ke1 {[%clk 0:00:10.4]} 44...
Rxg2 {[%clk 0:01:18.1]} 45. Bxg2 {[%clk 0:00:12.3]} 45... e3 {[%clk 0:01:19.2]}
46. Rb2 {[%clk 0:00:12.8]} 46... Qg3+ {[%clk 0:01:13.7]} 47. Kf1 {[%clk
0:00:10.5]} 47... Bd3+ {[%clk 0:01:10]} 0-1

[Event "GrandPrix_30.05"]
[Site "Chess.com"]
[Date "2020.05.30"]
[Round "5"]
[White "Kezin_Roman"]
[Black "GM_LOADING"]
[Result "0-1"]
[WhiteElo "2435"]
[BlackElo "2338"]
[TimeControl "600+2"]
[EndTime "10:26:36 PDT"]
[Termination "GM_LOADING won by resignation"]

1. d4 {[%clk 0:10:01.9]} 1... Nf6 {[%clk 0:10:00.7]} 2. c4 {[%clk 0:10:03.3]}
2... e6 {[%clk 0:10:01.7]} 3. g3 {[%clk 0:10:04.1]} 3... Bb4+ {[%clk 0:10:01.6]}
4. Bd2 {[%clk 0:10:05]} 4... a5 {[%clk 0:10:02.6]} 5. Bg2 {[%clk 0:10:05.1]}
5... d6 {[%clk 0:10:02.7]} 6. Nf3 {[%clk 0:10:06]} 6... Nbd7 {[%clk 0:10:03.1]}
7. O-O {[%clk 0:10:06.7]} 7... e5 {[%clk 0:10:04.1]} 8. Nc3 {[%clk 0:08:30.1]}
8... O-O {[%clk 0:10:03.1]} 9. a3 {[%clk 0:08:26.2]} 9... Bxc3 {[%clk
0:10:03.6]} 10. Bxc3 {[%clk 0:08:28.1]} 10... e4 {[%clk 0:10:01.5]} 11. Ne1
{[%clk 0:08:03.1]} 11... d5 {[%clk 0:09:49.2]} 12. b3 {[%clk 0:07:52.1]} 12...
a4 {[%clk 0:09:31.4]} 13. c5 {[%clk 0:07:23.9]} 13... axb3 {[%clk 0:09:23.5]}
14. Qxb3 {[%clk 0:07:25.8]} 14... Re8 {[%clk 0:09:16]} 15. Nc2 {[%clk
0:07:26.4]} 15... Nf8 {[%clk 0:08:42]} 16. Bd2 {[%clk 0:07:07.2]} 16... h6
{[%clk 0:07:36.1]} 17. a4 {[%clk 0:06:59.1]} 17... Bg4 {[%clk 0:07:18.4]} 18.
Rfe1 {[%clk 0:06:45.4]} 18... Ra7 {[%clk 0:07:18.6]} 19. a5 {[%clk 0:06:34.3]}
19... Qd7 {[%clk 0:07:07.3]} 20. Nb4 {[%clk 0:06:08.3]} 20... Rea8 {[%clk
0:06:48]} 21. c6 {[%clk 0:04:26.3]} 21... bxc6 {[%clk 0:06:49.9]} 22. Qc2 {[%clk
0:03:20.8]} 22... Rxa5 {[%clk 0:03:55.5]} 23. Rxa5 {[%clk 0:03:22.7]} 23... Rxa5
{[%clk 0:03:56.9]} 24. Nxc6 {[%clk 0:03:24.1]} 24... Ra8 {[%clk 0:03:51.7]} 25.
Ne5 {[%clk 0:03:25]} 25... Qe7 {[%clk 0:03:01.9]} 26. Rb1 {[%clk 0:03:25.8]}
26... Bxe2 {[%clk 0:02:23.1]} 27. Bb4 {[%clk 0:03:24.9]} 27... Bd3 {[%clk
0:02:24.4]} 28. Nxd3 {[%clk 0:03:07.7]} 28... exd3 {[%clk 0:02:26.3]} 29. Qxd3
{[%clk 0:03:09.5]} 29... Qd7 {[%clk 0:02:23.4]} 30. Bd2 {[%clk 0:03:03.6]} 30...
Ne6 {[%clk 0:02:14.5]} 31. h4 {[%clk 0:03:02.8]} 31... Ne4 {[%clk 0:01:07.8]}
32. Be3 {[%clk 0:03:00.8]} 32... c6 {[%clk 0:00:54.7]} 33. Rc1 {[%clk 0:03:00]}
33... Nd6 {[%clk 0:00:33.5]} 34. f3 {[%clk 0:02:34.3]} 34... Nc4 {[%clk
0:00:31.7]} 35. Bf2 {[%clk 0:02:35.7]} 35... Ra2 {[%clk 0:00:24.1]} 36. Qf5
{[%clk 0:02:35.7]} 36... Qb7 {[%clk 0:00:17.5]} 37. Rb1 {[%clk 0:01:58.8]} 37...
Qa7 {[%clk 0:00:18.1]} 38. Qd3 {[%clk 0:00:46.2]} 38... Rd2 {[%clk 0:00:16.1]}
39. Qc3 {[%clk 0:00:45.8]} 39... Nxd4 {[%clk 0:00:15.4]} 40. Rf1 {[%clk
0:00:43.3]} 40... Ne2+ {[%clk 0:00:16]} 41. Kh2 {[%clk 0:00:44.6]} 41... Qxf2
{[%clk 0:00:08.4]} 42. Rxf2 {[%clk 0:00:42.7]} 42... Nxc3 {[%clk 0:00:09.3]} 43.
Rf1 {[%clk 0:00:43.7]} 43... Ne3 {[%clk 0:00:10.6]} 0-1

[Event "GrandPrix_30.05"]
[Site "Chess.com"]
[Date "2020.05.30"]
[Round "5"]
[White "Guenplen"]
[Black "francyIM"]
[Result "1/2-1/2"]
[WhiteElo "2542"]
[BlackElo "2609"]
[TimeControl "600+2"]
[EndTime "10:26:38 PDT"]
[Termination "Game drawn by repetition"]

1. d4 {[%clk 0:10:01.9]} 1... Nf6 {[%clk 0:10:00]} 2. Bf4 {[%clk 0:10:02.5]}
2... d5 {[%clk 0:09:58.3]} 3. e3 {[%clk 0:10:03.4]} 3... c5 {[%clk 0:09:59.1]}
4. c3 {[%clk 0:10:04]} 4... Nc6 {[%clk 0:10:00]} 5. Nd2 {[%clk 0:10:04]} 5...
cxd4 {[%clk 0:09:58.6]} 6. exd4 {[%clk 0:10:04.2]} 6... Bf5 {[%clk 0:09:59.5]}
7. Ngf3 {[%clk 0:09:52.3]} 7... e6 {[%clk 0:10:00.1]} 8. Be2 {[%clk 0:09:29.4]}
8... Bd6 {[%clk 0:09:47.3]} 9. Bxd6 {[%clk 0:09:28.4]} 9... Qxd6 {[%clk
0:09:49.2]} 10. O-O {[%clk 0:09:29.9]} 10... O-O {[%clk 0:09:50.4]} 11. Nb3
{[%clk 0:09:21.8]} 11... Nd7 {[%clk 0:09:44.8]} 12. Bd3 {[%clk 0:09:16.8]} 12...
Bg6 {[%clk 0:08:16.2]} 13. Bxg6 {[%clk 0:09:14.9]} 13... hxg6 {[%clk 0:08:17.3]}
14. Re1 {[%clk 0:09:06.1]} 14... Rfb8 {[%clk 0:08:17.4]} 15. Qd3 {[%clk
0:07:34.7]} 15... b5 {[%clk 0:08:10.9]} 16. Ng5 {[%clk 0:07:19.4]} 16... Qf4
{[%clk 0:07:55.4]} 17. Nxe6 {[%clk 0:07:01.7]} 17... fxe6 {[%clk 0:07:53.7]} 18.
Rxe6 {[%clk 0:07:03.6]} 18... Rb6 {[%clk 0:06:42.7]} 19. Rxg6 {[%clk 0:06:52.9]}
19... Re8 {[%clk 0:06:21.7]} 20. Rg3 {[%clk 0:06:13.9]} 20... Qe4 {[%clk
0:05:41.5]} 21. h3 {[%clk 0:05:18.7]} 21... Qxd3 {[%clk 0:05:40.5]} 22. Rxd3
{[%clk 0:05:20.6]} 22... b4 {[%clk 0:05:39.1]} 23. Rc1 {[%clk 0:04:46.2]} 23...
Re2 {[%clk 0:05:34.8]} 24. cxb4 {[%clk 0:03:48]} 24... Nxb4 {[%clk 0:05:09.2]}
25. Rc8+ {[%clk 0:03:47.7]} 25... Kf7 {[%clk 0:05:09.8]} 26. Rf3+ {[%clk
0:03:08.4]} 26... Nf6 {[%clk 0:05:08.8]} 27. Nc5 {[%clk 0:03:01.4]} 27... Re7
{[%clk 0:03:04.6]} 28. g4 {[%clk 0:01:51]} 28... Kg6 {[%clk 0:02:25.6]} 29. h4
{[%clk 0:01:14.8]} 29... Nxg4 {[%clk 0:02:14.1]} 30. Rg3 {[%clk 0:01:15.5]}
30... Kf5 {[%clk 0:01:46.5]} 31. Rf3+ {[%clk 0:01:07.1]} 31... Kg6 {[%clk
0:01:47.4]} 32. Rg3 {[%clk 0:01:08.6]} 32... Kh5 {[%clk 0:01:48.7]} 33. a3
{[%clk 0:01:09.5]} 33... Nc2 {[%clk 0:01:08.5]} 34. Nd3 {[%clk 0:01:09.7]} 34...
Nxd4 {[%clk 0:01:04.2]} 35. Rh8+ {[%clk 0:01:02.9]} 35... Nh6 {[%clk 0:00:21.5]}
36. Nf4+ {[%clk 0:01:03]} 36... Kxh4 {[%clk 0:00:22.6]} 37. Ng2+ {[%clk
0:00:36.4]} 37... Kh5 {[%clk 0:00:23.6]} 38. Nf4+ {[%clk 0:00:26.5]} 38... Kh4
{[%clk 0:00:24.5]} 39. Ng2+ {[%clk 0:00:08]} 39... Kh5 {[%clk 0:00:24.8]} 40.
Nf4+ {[%clk 0:00:09.6]} 40... Kh4 {[%clk 0:00:25.9]} 1/2-1/2

[Event "GrandPrix_30.05"]
[Site "Chess.com"]
[Date "2020.05.30"]
[Round "5"]
[White "Iljin_Timofey"]
[Black "payto1"]
[Result "0-1"]
[WhiteElo "2245"]
[BlackElo "2184"]
[TimeControl "600+2"]
[EndTime "10:26:49 PDT"]
[Termination "payto1 won by checkmate"]

1. d4 {[%clk 0:09:14]} 1... Nf6 {[%clk 0:09:58.3]} 2. c4 {[%clk 0:08:59.7]} 2...
e6 {[%clk 0:09:57.2]} 3. Nc3 {[%clk 0:09:00.4]} 3... Bb4 {[%clk 0:09:57.3]} 4.
e3 {[%clk 0:09:01.5]} 4... O-O {[%clk 0:09:57.4]} 5. a3 {[%clk 0:09:02.6]} 5...
Bxc3+ {[%clk 0:09:58]} 6. bxc3 {[%clk 0:09:04.5]} 6... c5 {[%clk 0:09:59.3]} 7.
Bd3 {[%clk 0:09:05]} 7... b6 {[%clk 0:10:00.4]} 8. Ne2 {[%clk 0:09:06.4]} 8...
Nc6 {[%clk 0:10:00.5]} 9. O-O {[%clk 0:09:08.3]} 9... Ba6 {[%clk 0:10:01.6]} 10.
e4 {[%clk 0:09:09.2]} 10... Ne8 {[%clk 0:09:45.3]} 11. Ng3 {[%clk 0:09:09.3]}
11... e5 {[%clk 0:09:28.8]} 12. dxc5 {[%clk 0:08:51.6]} 12... bxc5 {[%clk
0:09:26.8]} 13. Nf5 {[%clk 0:08:53.5]} 13... Ne7 {[%clk 0:09:08.5]} 14. Ne3
{[%clk 0:08:49.5]} 14... Qa5 {[%clk 0:09:05.9]} 15. Nd5 {[%clk 0:08:46]} 15...
Nxd5 {[%clk 0:09:05.4]} 16. cxd5 {[%clk 0:08:47.9]} 16... Nd6 {[%clk 0:08:51.5]}
17. Bxa6 {[%clk 0:07:45.5]} 17... Qxa6 {[%clk 0:08:51.8]} 18. f3 {[%clk
0:07:47.4]} 18... Qc4 {[%clk 0:08:52]} 19. Be3 {[%clk 0:07:11.3]} 19... Rfb8
{[%clk 0:08:47.2]} 20. Qd2 {[%clk 0:07:02.7]} 20... Rb3 {[%clk 0:08:43.4]} 21.
Qf2 {[%clk 0:07:01.8]} 21... Rc8 {[%clk 0:08:21.8]} 22. Rfc1 {[%clk 0:06:39.7]}
22... a5 {[%clk 0:08:21]} 23. a4 {[%clk 0:06:37.7]} 23... h6 {[%clk 0:08:10.9]}
24. h4 {[%clk 0:06:28.3]} 24... Kh7 {[%clk 0:07:59.3]} 25. Qg3 {[%clk
0:06:23.9]} 25... Re8 {[%clk 0:07:47.3]} 26. Qf2 {[%clk 0:06:18.1]} 26... Rc8
{[%clk 0:06:38]} 27. h5 {[%clk 0:06:08.8]} 27... Rxc3 {[%clk 0:06:21.1]} 28.
Rxc3 {[%clk 0:06:08.3]} 28... Qxc3 {[%clk 0:06:23]} 29. Rc1 {[%clk 0:06:09.4]}
29... Qa3 {[%clk 0:06:23.9]} 30. Rxc5 {[%clk 0:06:06.5]} 30... Qxa4 {[%clk
0:06:10.7]} 31. Qg3 {[%clk 0:05:52.3]} 31... Qa3 {[%clk 0:05:39.7]} 32. Qf2
{[%clk 0:05:24.8]} 32... Rxc5 {[%clk 0:05:38.6]} 33. Bxc5 {[%clk 0:05:24.7]}
33... Qc1+ {[%clk 0:05:39.8]} 34. Kh2 {[%clk 0:05:26]} 34... Nc4 {[%clk
0:05:38.1]} 35. Qe2 {[%clk 0:04:38.9]} 35... a4 {[%clk 0:05:28.9]} 36. d6 {[%clk
0:04:34.3]} 36... a3 {[%clk 0:05:04]} 37. Qa2 {[%clk 0:04:32.6]} 37... Kg8
{[%clk 0:04:10.6]} 38. Qb3 {[%clk 0:04:20.2]} 38... Qb2 {[%clk 0:03:51.5]} 39.
Qxc4 {[%clk 0:04:09.9]} 39... a2 {[%clk 0:03:52.2]} 40. Bd4 {[%clk 0:03:23.2]}
40... exd4 {[%clk 0:02:04.4]} 41. Qc8+ {[%clk 0:03:22.4]} 41... Kh7 {[%clk
0:02:05.4]} 42. Qxd7 {[%clk 0:03:24.3]} 42... Qb8 {[%clk 0:01:53]} 43. Qc7
{[%clk 0:02:53.5]} 43... Qb5 {[%clk 0:01:51.6]} 44. Qxf7 {[%clk 0:02:11.5]}
44... a1=Q {[%clk 0:01:42.8]} 45. d7 {[%clk 0:02:12.2]} 45... Qa8 {[%clk
0:01:23.8]} 46. f4 {[%clk 0:00:53.2]} 46... Qd8 {[%clk 0:01:16.5]} 47. Qg6+
{[%clk 0:00:49]} 47... Kh8 {[%clk 0:01:16.2]} 48. Kh3 {[%clk 0:00:35.6]} 48...
Qbxd7+ {[%clk 0:01:15.1]} 49. f5 {[%clk 0:00:36.6]} 49... d3 {[%clk 0:01:14.4]}
50. e5 {[%clk 0:00:35.3]} 50... d2 {[%clk 0:01:12.4]} 51. e6 {[%clk 0:00:35.8]}
51... Qd3+ {[%clk 0:01:08.8]} 52. g3 {[%clk 0:00:37.7]} 52... d1=Q {[%clk
0:01:04.3]} 53. f6 {[%clk 0:00:26.6]} 53... Qh1+ {[%clk 0:01:02.7]} 54. Kg4
{[%clk 0:00:27.4]} 54... Qdf3# {[%clk 0:01:04.2]} 0-1

[Event "GrandPrix_30.05"]
[Site "Chess.com"]
[Date "2020.05.30"]
[Round "5"]
[White "Baron_von_Koenig"]
[Black "RussianChessFighter"]
[Result "1/2-1/2"]
[WhiteElo "2119"]
[BlackElo "2242"]
[TimeControl "600+2"]
[EndTime "10:26:50 PDT"]
[Termination "Game drawn by repetition"]

1. Nc3 {[%clk 0:10:01.9]} 1... d5 {[%clk 0:10:00]} 2. e4 {[%clk 0:10:02.3]} 2...
d4 {[%clk 0:09:59.4]} 3. Nce2 {[%clk 0:10:02.5]} 3... c5 {[%clk 0:09:59]} 4. Ng3
{[%clk 0:10:02.1]} 4... Nc6 {[%clk 0:09:59.3]} 5. Bc4 {[%clk 0:10:00.9]} 5...
Nf6 {[%clk 0:09:25.4]} 6. Nf3 {[%clk 0:09:57.3]} 6... Bg4 {[%clk 0:09:17.3]} 7.
O-O {[%clk 0:09:18]} 7... e6 {[%clk 0:09:13.7]} 8. h3 {[%clk 0:09:12.3]} 8...
Bxf3 {[%clk 0:09:12.3]} 9. Qxf3 {[%clk 0:09:13.3]} 9... Bd6 {[%clk 0:09:03]} 10.
Qe2 {[%clk 0:09:10]} 10... a6 {[%clk 0:07:33.7]} 11. a3 {[%clk 0:09:00.1]} 11...
h5 {[%clk 0:07:14.8]} 12. d3 {[%clk 0:08:50.4]} 12... h4 {[%clk 0:07:11.7]} 13.
Nh1 {[%clk 0:08:51.1]} 13... e5 {[%clk 0:05:02.8]} 14. f4 {[%clk 0:08:41]} 14...
exf4 {[%clk 0:04:58.4]} 15. Bxf4 {[%clk 0:08:41.1]} 15... Bxf4 {[%clk
0:04:58.6]} 16. Rxf4 {[%clk 0:08:41.8]} 16... Ne5 {[%clk 0:04:59.5]} 17. Bb3
{[%clk 0:08:23.5]} 17... Qd6 {[%clk 0:04:47.1]} 18. Raf1 {[%clk 0:08:14.6]}
18... b5 {[%clk 0:04:23.3]} 19. Rf5 {[%clk 0:08:12.3]} 19... Rc8 {[%clk
0:04:12.3]} 20. Nf2 {[%clk 0:08:04.4]} 20... c4 {[%clk 0:04:11.8]} 21. dxc4
{[%clk 0:08:04.8]} 21... bxc4 {[%clk 0:04:13.7]} 22. Ba4+ {[%clk 0:08:05.7]}
22... Ke7 {[%clk 0:04:11.8]} 23. Ng4 {[%clk 0:08:03.2]} 23... Nfxg4 {[%clk
0:04:09.6]} 24. hxg4 {[%clk 0:08:04]} 24... h3 {[%clk 0:04:07]} 25. g3 {[%clk
0:06:36.3]} 25... g6 {[%clk 0:03:29.6]} 26. R5f2 {[%clk 0:06:26.9]} 26... g5
{[%clk 0:03:23.7]} 27. Kh2 {[%clk 0:06:14.6]} 27... f6 {[%clk 0:03:23.2]} 28.
Rf5 {[%clk 0:06:04.9]} 28... d3 {[%clk 0:03:11.9]} 29. cxd3 {[%clk 0:05:45.2]}
29... cxd3 {[%clk 0:03:10.8]} 30. Qd1 {[%clk 0:05:46.2]} 30... Rc4 {[%clk
0:02:06.6]} 31. Rxf6 {[%clk 0:04:42.9]} 31... Qxf6 {[%clk 0:01:58.8]} 32. Rxf6
{[%clk 0:04:43.7]} 32... Kxf6 {[%clk 0:02:00.7]} 33. Qf1+ {[%clk 0:04:45.1]}
33... Kg7 {[%clk 0:01:10.7]} 34. Qf5 {[%clk 0:04:45.9]} 34... Ng6 {[%clk
0:01:11.3]} 35. Qd5 {[%clk 0:03:19.9]} 35... Rxa4 {[%clk 0:00:30.3]} 36. Qd7+
{[%clk 0:03:17.1]} 36... Kh6 {[%clk 0:00:31.6]} 37. Qxa4 {[%clk 0:03:18.7]}
37... Rd8 {[%clk 0:00:32.5]} 38. Qd1 {[%clk 0:03:19.3]} 38... d2 {[%clk
0:00:32.4]} 39. Kxh3 {[%clk 0:03:18.6]} 39... Ne5 {[%clk 0:00:33.9]} 40. Kg2
{[%clk 0:03:19.4]} 40... Nc4 {[%clk 0:00:35.1]} 41. Qf3 {[%clk 0:03:06.1]} 41...
Rd6 {[%clk 0:00:09]} 42. Qf8+ {[%clk 0:03:06]} 42... Kg6 {[%clk 0:00:10.4]} 43.
Qf5+ {[%clk 0:01:52.3]} 43... Kg7 {[%clk 0:00:11.2]} 44. Qxg5+ {[%clk
0:01:46.9]} 44... Kf7 {[%clk 0:00:12.6]} 45. e5 {[%clk 0:01:31.5]} 45... Re6
{[%clk 0:00:13.6]} 46. Qf5+ {[%clk 0:01:07.1]} 46... Ke7 {[%clk 0:00:13.8]} 47.
Qh7+ {[%clk 0:01:08.2]} 47... Kf8 {[%clk 0:00:14.1]} 48. Qh8+ {[%clk 0:01:07.8]}
48... Ke7 {[%clk 0:00:15.2]} 49. Qg7+ {[%clk 0:01:08.8]} 49... Ke8 {[%clk
0:00:16.5]} 50. Qg8+ {[%clk 0:01:09.9]} 50... Ke7 {[%clk 0:00:18.1]} 51. Qg7+
{[%clk 0:01:11]} 51... Kd8 {[%clk 0:00:16.5]} 52. Qg8+ {[%clk 0:01:12.1]} 52...
Ke7 {[%clk 0:00:16.6]} 53. Qg7+ {[%clk 0:01:13]} 1/2-1/2

[Event "GrandPrix_30.05"]
[Site "Chess.com"]
[Date "2020.05.30"]
[Round "5"]
[White "DaggiGretarsson"]
[Black "lilleper1"]
[Result "1-0"]
[WhiteElo "2220"]
[BlackElo "2370"]
[TimeControl "600+2"]
[EndTime "10:26:52 PDT"]
[Termination "DaggiGretarsson won by resignation"]

1. d4 {[%clk 0:09:56.7]} 1... Nf6 {[%clk 0:10:00.2]} 2. c4 {[%clk 0:09:57]} 2...
e6 {[%clk 0:10:01.5]} 3. Nf3 {[%clk 0:09:53.9]} 3... d5 {[%clk 0:10:01.8]} 4.
Nc3 {[%clk 0:09:52.2]} 4... dxc4 {[%clk 0:10:02.1]} 5. e3 {[%clk 0:09:51.9]}
5... a6 {[%clk 0:10:02.2]} 6. a4 {[%clk 0:09:48.4]} 6... Bb4 {[%clk 0:10:02.2]}
7. Bxc4 {[%clk 0:09:48.3]} 7... b6 {[%clk 0:10:03.2]} 8. O-O {[%clk 0:09:48.4]}
8... Bb7 {[%clk 0:09:59.7]} 9. Qe2 {[%clk 0:09:48.1]} 9... O-O {[%clk 0:09:57]}
10. Rd1 {[%clk 0:09:37.9]} 10... Nbd7 {[%clk 0:09:53.3]} 11. Bd3 {[%clk
0:09:11.7]} 11... Qe7 {[%clk 0:07:06.8]} 12. e4 {[%clk 0:08:17.6]} 12... e5
{[%clk 0:07:03.1]} 13. d5 {[%clk 0:06:45.6]} 13... Nc5 {[%clk 0:06:13.3]} 14.
Bc2 {[%clk 0:06:43]} 14... Bxc3 {[%clk 0:06:11]} 15. bxc3 {[%clk 0:06:41.5]}
15... a5 {[%clk 0:06:10]} 16. h3 {[%clk 0:05:30.8]} 16... Ne8 {[%clk 0:05:31.5]}
17. Ba3 {[%clk 0:05:13.7]} 17... Nd6 {[%clk 0:05:31.3]} 18. Bxc5 {[%clk
0:02:51]} 18... bxc5 {[%clk 0:05:30]} 19. c4 {[%clk 0:02:46.2]} 19... Ba6 {[%clk
0:05:12]} 20. Nd2 {[%clk 0:02:46.4]} 20... Rab8 {[%clk 0:04:55.4]} 21. Bd3
{[%clk 0:01:58.4]} 21... Rb4 {[%clk 0:04:28.2]} 22. Rdc1 {[%clk 0:01:50.2]}
22... Rfb8 {[%clk 0:04:17.3]} 23. Qe3 {[%clk 0:01:50.1]} 23... Nc8 {[%clk
0:04:12]} 24. f4 {[%clk 0:01:21]} 24... f6 {[%clk 0:04:00.5]} 25. fxe5 {[%clk
0:01:16.3]} 25... fxe5 {[%clk 0:04:00.7]} 26. Be2 {[%clk 0:01:05.5]} 26... Nb6
{[%clk 0:03:35.2]} 27. Nb3 {[%clk 0:00:59.4]} 27... Nxc4 {[%clk 0:02:11.4]} 28.
Qxc5 {[%clk 0:00:55.8]} 28... Qg5 {[%clk 0:01:29.4]} 29. Bxc4 {[%clk 0:00:13.1]}
29... Bxc4 {[%clk 0:01:29.8]} 30. Rxc4 {[%clk 0:00:13.8]} 30... Rxb3 {[%clk
0:01:30.3]} 31. Rf1 {[%clk 0:00:12.9]} 31... Rxh3 {[%clk 0:00:37.9]} 32. Qf2
{[%clk 0:00:12.4]} 32... h6 {[%clk 0:00:25.3]} 33. Rxc7 {[%clk 0:00:08.6]} 33...
Rhb3 {[%clk 0:00:18]} 34. Qf7+ {[%clk 0:00:05.5]} 34... Kh8 {[%clk 0:00:19]} 35.
Qf5 {[%clk 0:00:03.1]} 35... Qe3+ {[%clk 0:00:18.1]} 36. Kh1 {[%clk 0:00:03.3]}
36... Rb1 {[%clk 0:00:17.3]} 37. Rc8+ {[%clk 0:00:03.7]} 37... Rxc8 {[%clk
0:00:15.2]} 38. Qxc8+ {[%clk 0:00:04.7]} 38... Kh7 {[%clk 0:00:16]} 39. Qf5+
{[%clk 0:00:05.8]} 39... Kh8 {[%clk 0:00:16.4]} 40. Rxb1 {[%clk 0:00:05.9]} 1-0